[Event "Titled Tuesday Blitz April 11 Late 2023"]
[White "Stanisz, Patryk"]
[Black "Torrente, Alejandro Josue"]
[WhiteFideId "1123106"]
[BlackFideId "4437969"]
[WhiteElo "2069"]
[BlackElo "2025"]
[Result "0-1"]
[Round "06"]
[TimeControl "180+2"]
[Date "2023.04.11"]
[WhiteClock "0:00:06"]
[BlackClock "0:00:59"]

1. d4 {[%clk 0:03:00]}  d5 {[%clk 0:02:59]} 2. c4 {[%clk 0:03:00]}  e6 {[%clk 0:02:59]} 3. Nc3 {[%clk 0:03:01]}  Nf6 {[%clk 0:02:59]} 4. Nf3 {[%clk 0:03:01]}  Be7 {[%clk 0:03:00]} 5. Bf4 {[%clk 0:03:02]}  O-O {[%clk 0:03:00]} 6. e3 {[%clk 0:03:02]}  b6 {[%clk 0:03:00]} 7. Rc1 {[%clk 0:03:02]}  Bb7 {[%clk 0:02:59]} 8. cxd5 {[%clk 0:03:02]}  exd5 {[%clk 0:03:00]} 9. Bd3 {[%clk 0:03:02]}  a6 {[%clk 0:02:53]} 10. h3 {[%clk 0:02:59]}  Nbd7 {[%clk 0:02:48]} 11. O-O {[%clk 0:02:53]}  c5 {[%clk 0:02:47]} 12. Ne5 {[%clk 0:02:49]}  Rc8 {[%clk 0:02:40]} 13. Qe2 {[%clk 0:02:47]}  Nxe5 {[%clk 0:02:38]} 14. dxe5 {[%clk 0:02:35]}  c4 {[%clk 0:02:33]} 15. Bf5 {[%clk 0:02:19]}  Nd7 {[%clk 0:02:31]} 16. e6 {[%clk 0:01:53]}  fxe6 {[%clk 0:02:30]} 17. Bxe6+ {[%clk 0:01:54]}  Kh8 {[%clk 0:02:31]} 18. Bxd5 {[%clk 0:01:40]}  Bxd5 {[%clk 0:02:25]} 19. Nxd5 {[%clk 0:01:41]}  b5 {[%clk 0:02:25]} 20. Rcd1 {[%clk 0:01:35]}  Bc5 {[%clk 0:02:18]} 21. Nc3 {[%clk 0:01:21]}  Qe7 {[%clk 0:02:16]} 22. Qg4 {[%clk 0:01:04]}  Nf6 {[%clk 0:02:15]} 23. Qh4 {[%clk 0:00:56]}  b4 {[%clk 0:02:10]} 24. Na4 {[%clk 0:00:50]}  Rfd8 {[%clk 0:02:01]} 25. Nxc5 {[%clk 0:00:47]}  Qxc5 {[%clk 0:01:58]} 26. Bg5 {[%clk 0:00:41]}  Rf8 {[%clk 0:01:57]} 27. Bxf6 {[%clk 0:00:40]}  Rxf6 {[%clk 0:01:57]} 28. Qd4 {[%clk 0:00:37]}  Qa5 {[%clk 0:01:50]} 29. a3 {[%clk 0:00:24]}  bxa3 {[%clk 0:01:48]} 30. bxa3 {[%clk 0:00:25]}  Qxa3 {[%clk 0:01:46]} 31. Rc1 {[%clk 0:00:22]}  c3 {[%clk 0:01:43]} 32. Rc2 {[%clk 0:00:21]}  Rfc6 {[%clk 0:01:39]} 33. Rd1 {[%clk 0:00:15]}  h6 {[%clk 0:01:40]} 34. Rdc1 {[%clk 0:00:09]}  a5 {[%clk 0:01:40]} 35. Qd5 {[%clk 0:00:06]}  a4 {[%clk 0:01:35]} 36. Qa2 {[%clk 0:00:07]}  Qb3 {[%clk 0:01:33]} 37. Rb1 {[%clk 0:00:07]}  Qc4 {[%clk 0:01:20]} 38. Qxc4 {[%clk 0:00:06]}  Rxc4 {[%clk 0:01:21]} 39. Ra1 {[%clk 0:00:04]}  Rb8 {[%clk 0:01:19]} 40. Ra3 {[%clk 0:00:05]}  Rb3 {[%clk 0:01:16]} 41. Raa2 {[%clk 0:00:05]}  g5 {[%clk 0:01:14]} 42. g3 {[%clk 0:00:05]}  Kg7 {[%clk 0:01:14]} 43. Kf1 {[%clk 0:00:05]}  Kf6 {[%clk 0:01:14]} 44. Ke2 {[%clk 0:00:06]}  Ke5 {[%clk 0:01:14]} 45. Kd3 {[%clk 0:00:06]}  Rc8 {[%clk 0:01:14]} 46. Rxa4 {[%clk 0:00:05]}  Rb5 {[%clk 0:01:14]} 47. Rd4 {[%clk 0:00:05]}  Rb3 {[%clk 0:01:13]} 48. f3 {[%clk 0:00:04]}  h5 {[%clk 0:01:13]} 49. Re4+ {[%clk 0:00:05]}  Kf5 {[%clk 0:01:13]} 50. Rd4 {[%clk 0:00:06]}  Ra3 {[%clk 0:01:08]} 51. g4+ {[%clk 0:00:06]}  hxg4 {[%clk 0:01:08]} 52. hxg4+ {[%clk 0:00:06]}  Ke5 {[%clk 0:01:09]} 53. Re4+ {[%clk 0:00:06]}  Kf6 {[%clk 0:01:08]} 54. Rd4 {[%clk 0:00:07]}  Ra1 {[%clk 0:01:07]} 55. Ke4 {[%clk 0:00:05]}  Re8+ {[%clk 0:01:06]} 56. Kd5 {[%clk 0:00:05]}  Rxe3 {[%clk 0:01:05]} 57. Kc4 {[%clk 0:00:02]}  Ra4+ {[%clk 0:01:02]} 58. Kc5 {[%clk 0:00:02]}  Rxd4 {[%clk 0:00:58]} 59. Kxd4 {[%clk 0:00:02]}  Rxf3 {[%clk 0:00:59]} 60. Rxc3 {[%clk 0:00:01]}  Rxc3 {[%clk 0:00:56]} 61. Kxc3 {[%clk 0:00:02]}  Ke5 {[%clk 0:00:56]} 62. Kd3 {[%clk 0:00:03]}  Kf4 {[%clk 0:00:57]} 63. Ke2 {[%clk 0:00:03]}  Kxg4 {[%clk 0:00:58]} 64. Kf2 {[%clk 0:00:04]}  Kh3 {[%clk 0:00:57]} 65. Kg1 {[%clk 0:00:04]}  Kg3 {[%clk 0:00:58]} 66. Kf1 {[%clk 0:00:05]}  Kh2 {[%clk 0:00:58]} 67. Kf2 {[%clk 0:00:06]}  g4 {[%clk 0:00:59]} 68. Kf1 {[%clk 0:00:06]}  g3 {[%clk 0:00:59]} 0-1


[Site "https://www.chess.com"]

[Event "Titled Tuesday Blitz April 11 Late 2023"]
[White "Oliveira, Tiago Batista"]
[Black "Kopacz, Grzegorz"]
[WhiteFideId "2108291"]
[BlackFideId "1109880"]
[WhiteElo "1962"]
[BlackElo "2037"]
[Result "0-1"]
[Round "06"]
[TimeControl "180+2"]
[Date "2023.04.11"]
[WhiteClock "0:00:01"]
[BlackClock "0:00:09"]

1. d4 {[%clk 0:02:41]}  Nf6 {[%clk 0:02:59]} 2. c4 {[%clk 0:02:41]}  c5 {[%clk 0:02:59]} 3. d5 {[%clk 0:02:40]}  b5 {[%clk 0:02:58]} 4. cxb5 {[%clk 0:02:40]}  a6 {[%clk 0:02:59]} 5. bxa6 {[%clk 0:02:40]}  Bxa6 {[%clk 0:02:59]} 6. g3 {[%clk 0:02:39]}  d6 {[%clk 0:02:58]} 7. Bg2 {[%clk 0:02:39]}  g6 {[%clk 0:02:59]} 8. Nf3 {[%clk 0:02:39]}  Bg7 {[%clk 0:02:59]} 9. O-O {[%clk 0:02:39]}  O-O {[%clk 0:02:58]} 10. Nc3 {[%clk 0:02:34]}  Nbd7 {[%clk 0:02:58]} 11. Qc2 {[%clk 0:02:34]}  Qb6 {[%clk 0:02:54]} 12. Rd1 {[%clk 0:02:33]}  Rfb8 {[%clk 0:02:53]} 13. Rb1 {[%clk 0:02:33]}  Ng4 {[%clk 0:02:46]} 14. Bg5 {[%clk 0:02:31]}  Kf8 {[%clk 0:02:45]} 15. Qe4 {[%clk 0:02:27]}  Ngf6 {[%clk 0:02:41]} 16. Qh4 {[%clk 0:02:24]}  Kg8 {[%clk 0:02:20]} 17. e4 {[%clk 0:02:10]}  Qb4 {[%clk 0:02:12]} 18. Bh6 {[%clk 0:01:53]}  Bh8 {[%clk 0:02:08]} 19. Bd2 {[%clk 0:00:51]}  Qb6 {[%clk 0:01:58]} 20. Ng5 {[%clk 0:00:50]}  Bd3 {[%clk 0:01:06]} 21. Bh3 {[%clk 0:00:49]}  Nf8 {[%clk 0:00:57]} 22. Nxf7 {[%clk 0:00:47]}  Kxf7 {[%clk 0:00:52]} 23. Rbc1 {[%clk 0:00:31]}  Qxb2 {[%clk 0:00:43]} 24. Bh6 {[%clk 0:00:26]}  c4 {[%clk 0:00:36]} 25. Bxf8 {[%clk 0:00:16]}  Kxf8 {[%clk 0:00:33]} 26. Be6 {[%clk 0:00:16]}  Qb6 {[%clk 0:00:13]} 27. Rd2 {[%clk 0:00:14]}  Qd4 {[%clk 0:00:12]} 28. Ne2 {[%clk 0:00:13]}  Qe5 {[%clk 0:00:12]} 29. f4 {[%clk 0:00:11]}  Qh5 {[%clk 0:00:12]} 30. Qxh5 {[%clk 0:00:10]}  Nxh5 {[%clk 0:00:12]} 31. Nc3 {[%clk 0:00:03]}  Bxc3 {[%clk 0:00:11]} 32. Rxc3 {[%clk 0:00:03]}  Rb1+ {[%clk 0:00:11]} 33. Kg2 {[%clk 0:00:03]}  Ng7 {[%clk 0:00:11]} 34. Kf3 {[%clk 0:00:03]}  Nxe6 {[%clk 0:00:11]} 35. dxe6 {[%clk 0:00:02]}  Kg7 {[%clk 0:00:11]} 36. Ke3 {[%clk 0:00:02]}  Kf6 {[%clk 0:00:10]} 37. Kd4 {[%clk 0:00:01]}  Ra5 {[%clk 0:00:09]} 0-1


[Site "https://www.chess.com"]

[Event "Titled Tuesday Blitz April 11 Late 2023"]
[White "Steenbekkers, Franck"]
[Black "Kostiukov, Alexandr"]
[WhiteFideId "1004220"]
[BlackFideId "14108100"]
[WhiteElo "2164"]
[BlackElo "2202"]
[Result "1-0"]
[Round "06"]
[TimeControl "180+2"]
[Date "2023.04.11"]
[WhiteClock "0:00:15"]
[BlackClock "0:00:01"]

1. e4 {[%clk 0:03:00]}  c5 {[%clk 0:02:57]} 2. Nf3 {[%clk 0:02:59]}  g6 {[%clk 0:02:57]} 3. d4 {[%clk 0:02:58]}  cxd4 {[%clk 0:02:58]} 4. Nxd4 {[%clk 0:02:56]}  Bg7 {[%clk 0:02:58]} 5. c4 {[%clk 0:02:54]}  Nc6 {[%clk 0:02:58]} 6. Be3 {[%clk 0:02:53]}  Nf6 {[%clk 0:02:59]} 7. Nc3 {[%clk 0:02:52]}  O-O {[%clk 0:02:59]} 8. Be2 {[%clk 0:02:51]}  Nxd4 {[%clk 0:02:58]} 9. Bxd4 {[%clk 0:02:50]}  Qa5 {[%clk 0:02:58]} 10. O-O {[%clk 0:02:49]}  d6 {[%clk 0:02:59]} 11. Rc1 {[%clk 0:02:43]}  Be6 {[%clk 0:02:58]} 12. Qd2 {[%clk 0:02:41]}  Nxe4 {[%clk 0:02:56]} 13. Qe3 {[%clk 0:02:29]}  Nxc3 {[%clk 0:02:22]} 14. Rxc3 {[%clk 0:02:26]}  Bxd4 {[%clk 0:02:20]} 15. Qxd4 {[%clk 0:02:25]}  Rfc8 {[%clk 0:02:08]} 16. b3 {[%clk 0:02:23]}  Qxa2 {[%clk 0:01:48]} 17. Bf3 {[%clk 0:02:21]}  Qa6 {[%clk 0:01:39]} 18. Re3 {[%clk 0:02:17]}  Rc5 {[%clk 0:01:26]} 19. Rfe1 {[%clk 0:02:12]}  Rf8 {[%clk 0:01:19]} 20. Qh4 {[%clk 0:01:57]}  Rc7 {[%clk 0:01:07]} 21. Bd5 {[%clk 0:01:40]}  Bxd5 {[%clk 0:00:59]} 22. cxd5 {[%clk 0:01:38]}  f6 {[%clk 0:00:56]} 23. f4 {[%clk 0:01:27]}  Rf7 {[%clk 0:00:50]} 24. Qg4 {[%clk 0:01:20]}  Qb6 {[%clk 0:00:48]} 25. Kh1 {[%clk 0:01:17]}  Kg7 {[%clk 0:00:46]} 26. h4 {[%clk 0:01:15]}  h5 {[%clk 0:00:42]} 27. Qe6 {[%clk 0:01:07]}  Qd4 {[%clk 0:00:41]} 28. f5 {[%clk 0:01:03]}  Qxh4+ {[%clk 0:00:40]} 29. Kg1 {[%clk 0:00:57]}  g5 {[%clk 0:00:37]} 30. Re4 {[%clk 0:00:47]}  Qg3 {[%clk 0:00:28]} 31. R1e3 {[%clk 0:00:45]}  Rc1+ {[%clk 0:00:27]} 32. Re1 {[%clk 0:00:43]}  Rxe1+ {[%clk 0:00:23]} 33. Rxe1 {[%clk 0:00:43]}  Qxb3 {[%clk 0:00:23]} 34. Qd7 {[%clk 0:00:40]}  Qb6+ {[%clk 0:00:19]} 35. Kh2 {[%clk 0:00:38]}  Kf8 {[%clk 0:00:13]} 36. Qc8+ {[%clk 0:00:35]}  Kg7 {[%clk 0:00:12]} 37. Qd7 {[%clk 0:00:34]}  g4 {[%clk 0:00:10]} 38. Rxe7 {[%clk 0:00:33]}  Rxe7 {[%clk 0:00:04]} 39. Qxe7+ {[%clk 0:00:33]}  Kg8 {[%clk 0:00:03]} 40. Qxf6 {[%clk 0:00:30]}  Qe3 {[%clk 0:00:03]} 41. Qg6+ {[%clk 0:00:28]}  Kf8 {[%clk 0:00:03]} 42. Qxd6+ {[%clk 0:00:28]}  Kf7 {[%clk 0:00:01]} 43. Qd7+ {[%clk 0:00:22]}  Kf6 {[%clk 0:00:02]} 44. Qd6+ {[%clk 0:00:19]}  Kg5 {[%clk 0:00:02]} 45. Qg6+ {[%clk 0:00:18]}  Kf4 {[%clk 0:00:02]} 46. Qh6+ {[%clk 0:00:17]}  Ke4 {[%clk 0:00:02]} 47. Qe6+ {[%clk 0:00:16]}  Kf4 {[%clk 0:00:02]} 48. Qxe3+ {[%clk 0:00:16]}  Kxe3 {[%clk 0:00:03]} 49. f6 {[%clk 0:00:16]}  h4 {[%clk 0:00:04]} 50. f7 {[%clk 0:00:16]}  h3 {[%clk 0:00:03]} 51. gxh3 {[%clk 0:00:15]}  Kf3 {[%clk 0:00:01]} 52. hxg4 {[%clk 0:00:15]} 1-0


[Site "https://www.chess.com"]

[Event "Titled Tuesday Blitz April 11 Late 2023"]
[White "Gabriel, Robert"]
[Black "Zaksaite, Salomeja"]
[WhiteFideId "4606477"]
[BlackFideId "12801496"]
[WhiteElo "2203"]
[BlackElo "2059"]
[Result "1/2-1/2"]
[Round "06"]
[TimeControl "180+2"]
[Date "2023.04.11"]
[WhiteClock "0:00:04"]
[BlackClock "0:00:05"]

1. d4 {[%clk 0:03:00]}  Nf6 {[%clk 0:02:57]} 2. Nf3 {[%clk 0:02:57]}  g6 {[%clk 0:02:58]} 3. c4 {[%clk 0:02:56]}  Bg7 {[%clk 0:02:59]} 4. Nc3 {[%clk 0:02:55]}  O-O {[%clk 0:03:00]} 5. e4 {[%clk 0:02:53]}  d6 {[%clk 0:03:00]} 6. Be2 {[%clk 0:02:52]}  Nbd7 {[%clk 0:03:00]} 7. O-O {[%clk 0:02:49]}  e5 {[%clk 0:03:00]} 8. Qc2 {[%clk 0:02:47]}  Re8 {[%clk 0:02:59]} 9. Rd1 {[%clk 0:02:45]}  c6 {[%clk 0:02:56]} 10. dxe5 {[%clk 0:02:42]}  dxe5 {[%clk 0:02:56]} 11. h3 {[%clk 0:02:34]}  Qc7 {[%clk 0:02:56]} 12. Be3 {[%clk 0:02:31]}  Nf8 {[%clk 0:02:54]} 13. Rd2 {[%clk 0:02:27]}  Ne6 {[%clk 0:02:54]} 14. Rad1 {[%clk 0:02:25]}  Nf4 {[%clk 0:02:50]} 15. Bxf4 {[%clk 0:02:22]}  exf4 {[%clk 0:02:50]} 16. Bf1 {[%clk 0:02:06]}  h5 {[%clk 0:02:17]} 17. c5 {[%clk 0:02:02]}  Nh7 {[%clk 0:02:07]} 18. Bc4 {[%clk 0:01:55]}  g5 {[%clk 0:01:56]} 19. Rd6 {[%clk 0:01:37]}  Bf8 {[%clk 0:01:51]} 20. Rg6+ {[%clk 0:01:30]}  Kh8 {[%clk 0:01:46]} 21. Rxg5 {[%clk 0:01:25]}  Nxg5 {[%clk 0:01:46]} 22. Nxg5 {[%clk 0:01:24]}  Be6 {[%clk 0:01:44]} 23. Nxe6 {[%clk 0:01:22]}  fxe6 {[%clk 0:01:45]} 24. Qe2 {[%clk 0:01:15]}  Qh7 {[%clk 0:01:39]} 25. e5 {[%clk 0:01:09]}  Rad8 {[%clk 0:01:26]} 26. Rxd8 {[%clk 0:01:04]}  Rxd8 {[%clk 0:01:26]} 27. Ne4 {[%clk 0:00:57]}  Qf5 {[%clk 0:01:08]} 28. Nf6 {[%clk 0:00:48]}  Bxc5 {[%clk 0:00:43]} 29. Bxe6 {[%clk 0:00:41]}  Qg5 {[%clk 0:00:40]} 30. Bf7 {[%clk 0:00:29]}  Bd4 {[%clk 0:00:26]} 31. Bxh5 {[%clk 0:00:23]}  Bxe5 {[%clk 0:00:24]} 32. Ne4 {[%clk 0:00:20]}  f3 {[%clk 0:00:14]} 33. Bxf3 {[%clk 0:00:11]}  Qc1+ {[%clk 0:00:12]} 34. Qf1 {[%clk 0:00:11]}  Qxf1+ {[%clk 0:00:12]} 35. Kxf1 {[%clk 0:00:10]}  Bxb2 {[%clk 0:00:12]} 36. Ke2 {[%clk 0:00:09]}  Kg7 {[%clk 0:00:12]} 37. g4 {[%clk 0:00:08]}  b5 {[%clk 0:00:11]} 38. h4 {[%clk 0:00:08]}  a5 {[%clk 0:00:09]} 39. g5 {[%clk 0:00:08]}  a4 {[%clk 0:00:09]} 40. Bg4 {[%clk 0:00:07]}  b4 {[%clk 0:00:08]} 41. Bf5 {[%clk 0:00:06]}  Rf8 {[%clk 0:00:05]} 42. Ng3 {[%clk 0:00:05]}  Be5 {[%clk 0:00:03]} 43. Bd3 {[%clk 0:00:02]}  b3 {[%clk 0:00:03]} 44. axb3 {[%clk 0:00:02]}  Bxg3 {[%clk 0:00:02]} 45. fxg3 {[%clk 0:00:01]}  axb3 {[%clk 0:00:03]} 46. h5 {[%clk 0:00:01]}  c5 {[%clk 0:00:03]} 47. h6+ {[%clk 0:00:02]}  Kh8 {[%clk 0:00:03]} 48. g6 {[%clk 0:00:02]}  Re8+ {[%clk 0:00:04]} 49. Kd2 {[%clk 0:00:02]}  Re7 {[%clk 0:00:03]} 50. g7+ {[%clk 0:00:02]}  Rxg7 {[%clk 0:00:03]} 51. hxg7+ {[%clk 0:00:02]}  Kxg7 {[%clk 0:00:04]} 52. Kc3 {[%clk 0:00:03]}  Kf6 {[%clk 0:00:04]} 53. Kxb3 {[%clk 0:00:03]}  Kg5 {[%clk 0:00:04]} 54. Kc4 {[%clk 0:00:04]}  Kg4 {[%clk 0:00:04]} 55. Kxc5 {[%clk 0:00:04]}  Kxg3 {[%clk 0:00:05]} 1/2-1/2


[Site "https://www.chess.com"]

[Event "Titled Tuesday Blitz April 11 Late 2023"]
[White "Joubert, Dantelle"]
[Black "Michalski, Olaf"]
[WhiteFideId "14310813"]
[BlackFideId "1106740"]
[WhiteElo "1507"]
[BlackElo "2173"]
[Result "0-1"]
[Round "06"]
[TimeControl "180+2"]
[Date "2023.04.11"]
[WhiteClock "0:00:18"]
[BlackClock "0:00:36"]

1. d4 {[%clk 0:03:00]}  d6 {[%clk 0:02:59]} 2. c4 {[%clk 0:03:01]}  g6 {[%clk 0:02:58]} 3. Nc3 {[%clk 0:03:01]}  Bg7 {[%clk 0:02:57]} 4. e4 {[%clk 0:03:00]}  Nc6 {[%clk 0:02:58]} 5. Be3 {[%clk 0:02:58]}  e5 {[%clk 0:02:57]} 6. dxe5 {[%clk 0:02:56]}  dxe5 {[%clk 0:02:53]} 7. Qxd8+ {[%clk 0:02:53]}  Nxd8 {[%clk 0:02:53]} 8. Nd5 {[%clk 0:02:49]}  Ne6 {[%clk 0:02:52]} 9. O-O-O {[%clk 0:02:41]}  c6 {[%clk 0:02:48]} 10. Nc3 {[%clk 0:02:40]}  f5 {[%clk 0:02:40]} 11. f3 {[%clk 0:02:39]}  Bh6 {[%clk 0:02:27]} 12. Bxh6 {[%clk 0:02:35]}  Nxh6 {[%clk 0:02:28]} 13. Nge2 {[%clk 0:02:07]}  O-O {[%clk 0:02:27]} 14. h4 {[%clk 0:01:57]}  f4 {[%clk 0:02:25]} 15. Ng1 {[%clk 0:01:33]}  Nd4 {[%clk 0:02:16]} 16. Nce2 {[%clk 0:01:29]}  c5 {[%clk 0:02:12]} 17. Nc3 {[%clk 0:01:28]}  Be6 {[%clk 0:01:50]} 18. Nh3 {[%clk 0:01:26]}  Nf7 {[%clk 0:01:49]} 19. Ng5 {[%clk 0:01:25]}  Nxg5 {[%clk 0:01:42]} 20. hxg5 {[%clk 0:01:26]}  Kg7 {[%clk 0:01:27]} 21. Bd3 {[%clk 0:01:25]}  Bg8 {[%clk 0:01:03]} 22. Nd5 {[%clk 0:01:24]}  Ne6 {[%clk 0:01:00]} 23. Bc2 {[%clk 0:00:57]}  Nxg5 {[%clk 0:00:55]} 24. Nc7 {[%clk 0:00:56]}  Rad8 {[%clk 0:00:51]} 25. Ba4 {[%clk 0:00:51]}  a6 {[%clk 0:00:41]} 26. a3 {[%clk 0:00:30]}  Bxc4 {[%clk 0:00:40]} 27. b3 {[%clk 0:00:18]}  Bg8 {[%clk 0:00:36]} 28. Kb2 {[%clk 0:00:18]}  b5 {[%clk 0:00:36]} 0-1


[Site "https://www.chess.com"]

[Event "Titled Tuesday Blitz April 11 Late 2023"]
[White "Vachier-Lagrave, Maxime"]
[Black "Paravyan, David"]
[WhiteFideId "623539"]
[BlackFideId "4194985"]
[WhiteElo "2740"]
[BlackElo "2563"]
[Result "0-1"]
[Round "07"]
[TimeControl "180+2"]
[Date "2023.04.11"]
[WhiteClock "0:00:43"]
[BlackClock "0:00:05"]

1. e4 {[%clk 0:03:00]}  e5 {[%clk 0:02:59]} 2. Nf3 {[%clk 0:03:01]}  Nf6 {[%clk 0:02:59]} 3. Nxe5 {[%clk 0:03:01]}  d6 {[%clk 0:03:00]} 4. Nd3 {[%clk 0:03:02]}  Nxe4 {[%clk 0:03:00]} 5. Nf4 {[%clk 0:03:02]}  d5 {[%clk 0:03:00]} 6. d4 {[%clk 0:03:02]}  Nc6 {[%clk 0:02:58]} 7. c3 {[%clk 0:03:02]}  g5 {[%clk 0:02:48]} 8. Nd3 {[%clk 0:03:00]}  Bf5 {[%clk 0:02:34]} 9. Be2 {[%clk 0:02:59]}  Qf6 {[%clk 0:02:33]} 10. O-O {[%clk 0:02:53]}  O-O-O {[%clk 0:02:33]} 11. f3 {[%clk 0:02:53]}  Nd6 {[%clk 0:02:33]} 12. f4 {[%clk 0:02:54]}  g4 {[%clk 0:02:26]} 13. Bxg4 {[%clk 0:02:45]}  Rg8 {[%clk 0:02:26]} 14. Bf3 {[%clk 0:02:42]}  Qg6 {[%clk 0:01:47]} 15. Ne5 {[%clk 0:02:41]}  Nxe5 {[%clk 0:01:48]} 16. fxe5 {[%clk 0:02:41]}  Bxb1 {[%clk 0:01:48]} 17. exd6 {[%clk 0:02:41]}  Bxd6 {[%clk 0:01:49]} 18. Bf4 {[%clk 0:02:10]}  Bd3 {[%clk 0:01:34]} 19. Bxd6 {[%clk 0:02:04]}  Bxf1 {[%clk 0:01:29]} 20. Bg3 {[%clk 0:02:05]}  Bd3 {[%clk 0:01:18]} 21. Qa4 {[%clk 0:02:04]}  Qa6 {[%clk 0:00:56]} 22. Qb4 {[%clk 0:02:00]}  Be4 {[%clk 0:00:57]} 23. Rf1 {[%clk 0:01:52]}  Rd7 {[%clk 0:00:38]} 24. Bh5 {[%clk 0:01:46]}  f5 {[%clk 0:00:36]} 25. a4 {[%clk 0:01:31]}  b6 {[%clk 0:00:36]} 26. Rf2 {[%clk 0:01:27]}  Qd3 {[%clk 0:00:32]} 27. Be2 {[%clk 0:01:26]}  Qe3 {[%clk 0:00:33]} 28. Bf1 {[%clk 0:01:18]}  Rdg7 {[%clk 0:00:28]} 29. Qb5 {[%clk 0:01:05]}  f4 {[%clk 0:00:27]} 30. Qc6 {[%clk 0:00:52]}  fxg3 {[%clk 0:00:19]} 31. Ba6+ {[%clk 0:00:53]}  Kd8 {[%clk 0:00:19]} 32. hxg3 {[%clk 0:00:53]}  Qc1+ {[%clk 0:00:08]} 33. Kh2 {[%clk 0:00:51]}  Rg6 {[%clk 0:00:04]} 34. Rf6 {[%clk 0:00:45]}  Qh6+ {[%clk 0:00:04]} 35. Kg1 {[%clk 0:00:43]}  Rxf6 {[%clk 0:00:05]} 36. Qa8+ {[%clk 0:00:43]}  Ke7 {[%clk 0:00:06]} 37. Qxg8 {[%clk 0:00:43]}  Qe3+ {[%clk 0:00:05]} 0-1


[Site "https://www.chess.com"]

[Event "Titled Tuesday Blitz April 11 Late 2023"]
[White "Hansen, Eric"]
[Black "Hakobyan, Aram"]
[WhiteFideId "2606771"]
[BlackFideId "13306677"]
[WhiteElo "2561"]
[BlackElo "2584"]
[Result "0-1"]
[Round "07"]
[TimeControl "180+2"]
[Date "2023.04.11"]
[WhiteClock "0:00:01"]
[BlackClock "0:00:03"]

1. d4 {[%clk 0:03:00]}  Nf6 {[%clk 0:02:59]} 2. c4 {[%clk 0:03:00]}  a6 {[%clk 0:03:00]} 3. f3 {[%clk 0:02:57]}  c5 {[%clk 0:02:57]} 4. d5 {[%clk 0:02:57]}  e6 {[%clk 0:02:50]} 5. e4 {[%clk 0:02:57]}  d6 {[%clk 0:02:51]} 6. Nc3 {[%clk 0:02:57]}  exd5 {[%clk 0:02:49]} 7. cxd5 {[%clk 0:02:40]}  b5 {[%clk 0:02:49]} 8. Be3 {[%clk 0:02:32]}  g6 {[%clk 0:02:49]} 9. Qd2 {[%clk 0:02:32]}  Bg7 {[%clk 0:02:48]} 10. Nge2 {[%clk 0:02:31]}  O-O {[%clk 0:02:46]} 11. Ng3 {[%clk 0:02:31]}  Nbd7 {[%clk 0:02:44]} 12. Be2 {[%clk 0:02:29]}  Re8 {[%clk 0:02:40]} 13. O-O {[%clk 0:02:29]}  h5 {[%clk 0:02:23]} 14. Bg5 {[%clk 0:02:20]}  Qe7 {[%clk 0:02:19]} 15. Rae1 {[%clk 0:02:17]}  Qf8 {[%clk 0:02:19]} 16. a4 {[%clk 0:02:01]}  b4 {[%clk 0:02:17]} 17. Nd1 {[%clk 0:02:02]}  Nh7 {[%clk 0:02:17]} 18. Be3 {[%clk 0:01:57]}  Ne5 {[%clk 0:02:12]} 19. b3 {[%clk 0:01:55]}  h4 {[%clk 0:02:09]} 20. Nh1 {[%clk 0:01:55]}  f5 {[%clk 0:02:09]} 21. Nhf2 {[%clk 0:01:53]}  Bd7 {[%clk 0:02:02]} 22. Nb2 {[%clk 0:01:49]}  Qf6 {[%clk 0:01:56]} 23. Nc4 {[%clk 0:01:19]}  Nxc4 {[%clk 0:01:56]} 24. Bxc4 {[%clk 0:01:20]}  Qc3 {[%clk 0:01:42]} 25. Qe2 {[%clk 0:01:20]}  g5 {[%clk 0:01:39]} 26. Rc1 {[%clk 0:01:16]}  Qf6 {[%clk 0:01:35]} 27. Bxa6 {[%clk 0:01:15]}  f4 {[%clk 0:01:34]} 28. Bd2 {[%clk 0:01:14]}  Nf8 {[%clk 0:01:35]} 29. Bb5 {[%clk 0:01:11]}  Bxb5 {[%clk 0:01:28]} 30. Qxb5 {[%clk 0:01:11]}  Ng6 {[%clk 0:01:28]} 31. Ng4 {[%clk 0:01:07]}  Qb2 {[%clk 0:01:28]} 32. Qd3 {[%clk 0:01:05]}  Ne5 {[%clk 0:01:12]} 33. Nxe5 {[%clk 0:01:04]}  Qxe5 {[%clk 0:01:13]} 34. Rfd1 {[%clk 0:00:59]}  h3 {[%clk 0:01:09]} 35. gxh3 {[%clk 0:01:00]}  Kf7 {[%clk 0:01:08]} 36. Be1 {[%clk 0:00:56]}  Rh8 {[%clk 0:01:08]} 37. h4 {[%clk 0:00:51]}  Bf6 {[%clk 0:01:04]} 38. Kh1 {[%clk 0:00:36]}  Rag8 {[%clk 0:01:03]} 39. Bf2 {[%clk 0:00:36]}  g4 {[%clk 0:01:00]} 40. fxg4 {[%clk 0:00:34]}  Bxh4 {[%clk 0:01:01]} 41. Bg1 {[%clk 0:00:27]}  Bg3 {[%clk 0:00:59]} 42. Rc2 {[%clk 0:00:27]}  Rxg4 {[%clk 0:00:55]} 43. Rg2 {[%clk 0:00:25]}  Rgh4 {[%clk 0:00:53]} 44. Qf3 {[%clk 0:00:24]}  Ke7 {[%clk 0:00:50]} 45. Rf1 {[%clk 0:00:19]}  Kd8 {[%clk 0:00:32]} 46. Qe2 {[%clk 0:00:16]}  Rh3 {[%clk 0:00:26]} 47. Rf3 {[%clk 0:00:16]}  Qh5 {[%clk 0:00:18]} 48. e5 {[%clk 0:00:08]}  Qxe5 {[%clk 0:00:14]} 49. Qd3 {[%clk 0:00:02]}  Qe1 {[%clk 0:00:07]} 50. Rf1 {[%clk 0:00:01]}  Qe5 {[%clk 0:00:08]} 51. Rf3 {[%clk 0:00:02]}  Qh5 {[%clk 0:00:08]} 52. a5 {[%clk 0:00:01]}  Qh7 {[%clk 0:00:03]} 0-1


[Site "https://www.chess.com"]